bitfinex/quotes_SOLUSD_20250228
["timestamp","ask_amount","ask_price","bid_price","bid_amount"]
[1740717959121,27.0666,129.31,129.18,20.0]
[1740717959520,18.64964886,129.3,129.13,0.14216157]
[1740717959828,0.14216157,129.29,129.11,12.30528015]
[1740717960123,0.14216157,129.29,129.11,10.68]
[1740717960323,0.14216157,129.26,129.12,18.64964886]
[1740717960627,0.14216157,129.29,129.12,18.64964886]
[1740717960809,7.7333,129.31,129.14,6.5549]
[1740717961013,7.7333,129.31,129.15,0.14216157]
[1740717961325,18.64964886,129.27,129.08,8.18022022]
[1740717961527,0.14216157,129.25,129.09,10.96]
[1740717961818,0.14216157,129.25,129.08,6.5549]
[1740717962022,0.14216157,129.22,129.09,10.98]
[1740717962324,18.79181043,129.19,129.04,10.98]
[1740717962515,29.77181043,129.19,129.04,10.98]
[1740717962708,0.14216157,129.15,129.04,10.98]
[1740717962920,18.79181043,129.15,128.99,10.98]
[1740717963115,0.14216157,129.11,128.97,0.063]
[1740717963329,18.79181043,129.09,128.97,0.063]
[1740717963511,24.64080575,129.09,128.97,0.063]
[1740717963913,5.84899532,129.09,128.97,0.063]
[1740717964124,18.7259,129.1,128.97,0.063]
[1740717965033,24.70159991,129.1,128.97,0.063]
[1740717965608,18.79181043,129.09,128.97,0.063]
[1740717966311,0.14216157,129.04,128.97,0.063]
[1740717966718,18.64964886,129.07,128.97,0.063]
[1740717966917,0.14216157,129.06,128.97,0.063]
[1740717967326,0.14216157,129.04,128.97,0.063]
[1740717967812,18.79181043,129.04,128.97,0.063]
[1740717968723,19.3723,129.05,128.97,0.063]
[1740717968932,0.14216157,129.06,128.97,0.063]
[1740717969234,18.79181043,129.02,128.97,0.063]
[1740717969726,20.0,128.99,128.84,145.0220682]
[1740717970037,18.79181043,128.98,128.85,10.92]
[1740717970424,6.3965,129.01,128.85,10.92]
[1740717970736,14.2249,129.03,128.9,0.14216157]
[1740717970927,9.26059991,129.1,128.94,20.0]
[1740717971155,17.00649991,129.1,128.99,20.0]
[1740717971313,18.64964886,129.07,128.95,10.96]
[1740717971634,18.64964886,129.07,128.9,10.96]
[1740717971836,20.0,129.03,128.9,10.96]
[1740717972129,20.0,129.03,128.85,29.62964886]
[1740717972313,38.79181043,129.02,128.85,29.62964886]
[1740717972520,38.79181043,129.02,128.8,139.7284]
[1740717972717,20.0,128.94,128.84,0.1439514]
[1740717972921,18.7543,128.96,128.84,0.1439514]
[1740717973642,11.0,128.96,128.84,0.1439514]
[1740717973836,130.7,128.97,128.88,20.0]
[1740717974238,18.79181043,128.96,128.85,11.02]
[1740717974445,18.79181043,128.96,128.84,0.1439514]
[1740717975150,21.92341043,128.94,128.84,0.1439514]
[1740717975358,20.0,128.9,128.84,0.1439514]
[1740717975519,18.79181043,128.89,128.84,0.1439514]
[1740717975954,20.0,128.85,128.75,0.063]
[1740717976143,0.14216157,128.84,128.75,0.063]
[1740717976446,0.14216157,128.82,128.75,0.063]
[1740717977148,27.7622,128.83,128.75,0.063]
[1740717977650,7.90366157,128.84,128.75,0.063]
[1740717977948,130.74,128.86,128.77,20.0]
[1740717978448,44.83267818,128.93,128.81,20.0]
[1740717978737,133.8716,128.94,128.81,20.0]
[1740717978927,133.8716,128.94,128.82,38.79181043]
[1740717979125,130.74,128.94,128.86,20.0]
[1740717979314,3.1896,129.0,128.88,20.0]
[1740717979315,10.9415,129.0,128.88,20.0]
[1740717979519,10.9415,129.0,128.83,11.02]
[1740717979738,18.79181043,128.98,128.83,11.02]
[1740717979917,44.83267818,128.99,128.83,11.02]
[1740717980322,12.36767589,129.0,128.86,20.0]
[1740717980624,10.9415,129.0,128.86,20.0]
[1740717980823,3.1896,129.0,128.9,20.0]
[1740717981131,0.03,128.99,128.9,20.0]
[1740717981524,0.03,128.99,128.9,31.08]
[1740717981927,0.03,128.99,128.93,20.0]
[1740717983639,0.03,128.99,128.94,20.0]
[1740717984226,0.03,128.99,128.98,20.0]
[1740717985422,0.03,128.99,128.98,38.79181043]
[1740717985626,0.03,128.99,128.97,11.06]
[1740717985942,18.64964886,129.08,128.97,11.06]
[1740717986128,18.64964886,129.08,128.97,10.86]
[1740717986328,18.64964886,129.08,128.92,11.06]
[1740717986543,18.79181043,129.06,128.92,29.70964886]
[1740717986857,18.79181043,129.06,128.95,20.0]
[1740717987044,7.7489,129.05,128.95,20.0]
[1740717987656,7.7484,129.06,128.95,20.0]
[1740717987959,18.79181043,129.05,128.92,11.06]
[1740717988132,27.1192,129.06,128.92,11.06]
[1740717988335,27.1192,129.06,128.95,20.0]
[1740717989159,7.7484,129.06,128.95,20.0]
[1740717989661,18.79181043,129.05,128.95,20.0]
[1740717989863,18.79181043,129.05,128.91,6.5937]
[1740717990032,18.79181043,129.03,128.88,14.2397]
[1740717990231,18.79181043,129.03,128.86,17.4162]
[1740717990459,48.20527818,129.04,128.86,17.4162]
[1740717990460,18.79181043,129.01,128.86,6.3962]
[1740717990662,18.79181043,128.99,128.86,6.3962]
[1740717990863,18.79181043,128.97,128.86,6.3962]
[1740717991176,18.79181043,128.95,128.83,11.97158633]
[1740717991333,18.79181043,128.95,128.86,20.0]
[1740717991534,18.79181043,128.95,128.83,11.97158633]
[1740717992225,18.79181043,128.95,128.83,20.0]
[1740717992432,27.1401,128.96,128.8,6.7385]
[1740717992629,27.1401,128.96,128.85,20.0]
[1740717993431,44.83267818,128.98,128.89,20.0]
[1740717993432,7.7537,128.97,128.89,20.0]
[1740717993954,7.7532,128.98,128.89,20.0]
[1740717994561,71.96867818,128.98,128.86,10.98]
[1740717994757,0.14216157,128.93,128.8,6.7385]
[1740717994960,18.64964886,128.91,128.8,17.7185]
[1740717995341,44.97483975,128.92,128.8,17.7185]
[1740717995342,44.83267818,128.92,128.8,17.7185]
[1740717995541,7.7573,128.91,128.8,17.7185]
[1740717995755,7.7573,128.91,128.8,10.98]
[1740717996062,44.83267818,128.92,128.8,10.98]
[1740717996366,44.83267818,128.97,128.84,18.79181043]
[1740717996537,44.83267818,128.97,128.87,20.0]
[1740717996737,44.83267818,128.97,128.88,20.0]
[1740717997469,130.74,128.99,128.88,20.0]
[1740717997470,18.64964886,128.98,128.88,20.0]
[1740717997653,130.74,128.99,128.88,20.0]
[1740717997836,18.79181043,128.98,128.88,20.0]
[1740717998037,18.79181043,128.96,128.87,10.98]
[1740717999169,18.79181043,128.96,128.85,20.0]
[1740717999665,44.83267818,128.97,128.85,20.0]
[1740717999839,44.83267818,128.97,128.87,20.0]
[1740718000440,44.83267818,128.97,128.88,18.79181043]
[1740718000741,130.74,128.99,128.92,20.0]
[1740718001670,3.3726,129.04,128.92,20.0]
[1740718002042,22.02224886,129.04,128.92,20.0]
[1740718002470,10.9,129.05,128.92,20.0]
[1740718002671,10.9,129.05,128.94,20.0]
[1740718003961,44.83267818,129.06,128.94,20.0]
[1740718004364,0.03,129.05,128.94,20.0]
[1740718004957,18.82181043,129.05,128.91,6.6803]
[1740718005778,18.79181043,129.03,128.91,6.6803]
[1740718005951,20.0,129.0,128.91,6.6803]
[1740718006181,44.83267818,129.02,128.91,6.6803]
[1740718006352,55.61267818,129.02,128.91,6.6803]
[1740718008076,10.78,129.02,128.94,20.0]
[1740718008282,0.03,129.05,128.96,20.0]
[1740718008762,0.03,129.05,128.93,10.74]
[1740718009153,0.03,129.05,128.96,20.0]
[1740718009570,0.03,129.05,128.98,20.0]
[1740718010579,0.03,129.05,129.02,20.0]
[1740718010758,0.03,129.05,129.02,26.903]
[1740718011779,6.16263036,129.1,129.02,26.903]
[1740718012082,6.16263036,129.1,129.0,10.8]
[1740718014777,13.90863036,129.1,129.0,10.8]
[1740718014961,6.16263036,129.1,129.0,10.8]
[1740718015158,0.14216157,129.09,128.97,6.3056]
[1740718015375,18.64964886,129.07,128.97,6.3056]
[1740718015584,29.34964886,129.07,128.97,6.3056]
[1740718016162,7.7483,129.06,128.97,6.3056]
[1740718017752,18.64964886,129.05,128.93,11.97158633]
[1740718017957,44.83267818,129.04,128.93,11.97158633]
[1740718018157,7.7501,129.03,128.92,9.5067]
[1740718019390,0.14216157,129.01,128.92,6.6574]
[1740718020273,7.7519,129.0,128.92,6.6574]
[1740718020659,44.83267818,128.99,128.91,0.063]
[1740718020859,18.64964886,128.98,128.87,10.6]
[1740718021071,44.83267818,128.97,128.87,10.6]
[1740718021286,44.83267818,128.97,128.86,6.6242]
[1740718021988,44.83267818,128.97,128.91,20.0]
[1740718022186,10.56,129.0,128.91,20.0]
[1740718022359,130.74,129.02,128.91,20.0]
[1740718022567,138.4908,129.02,128.91,20.0]
[1740718023700,130.74,129.02,128.91,20.0]
[1740718023882,52.58157818,129.05,128.95,20.0]
[1740718024080,3.0062,129.08,128.96,6.1073]
[1740718024389,0.03,129.08,128.96,16.6273]
[1740718024679,18.64964886,129.06,128.96,16.6273]
[1740718024861,18.64964886,129.04,128.96,6.1073]
[1740718025067,44.83267818,129.05,128.96,6.1073]
[1740718025266,0.03,129.08,128.99,20.0]
[1740718025993,63.51232704,129.08,128.98,10.52]
[1740718026188,18.64964886,129.06,128.96,6.1073]
[1740718026484,52.58157818,129.05,128.96,6.1073]
[1740718026868,71.95387818,129.05,128.92,2.8022]
[1740718027062,63.48232704,129.04,128.92,2.8022]
[1740718027676,18.64964886,129.02,128.91,16.9705]
[1740718027876,44.83267818,129.01,128.91,16.9705]
[1740718028387,18.64964886,128.99,128.86,13.2953]
[1740718028592,18.64964886,128.97,128.86,2.7753]
[1740718029368,44.83267818,128.98,128.86,2.7753]
[1740718029764,63.62448861,128.97,128.83,0.063]
[1740718029987,18.64964886,128.95,128.83,0.063]
[1740718030194,10.52,128.94,128.83,0.063]
[1740718030380,7.7561,128.93,128.84,20.0]
[1740718030682,7.7531,128.98,128.85,18.79181043]
[1740718030887,7.7531,128.98,128.86,20.0]
[1740718031072,138.4926,128.99,128.91,20.0]
[1740718032586,43.48232704,129.01,128.92,18.64964886]
[1740718032993,10.54,129.02,128.93,20.0]
[1740718033194,7.7501,129.03,128.94,18.64964886]
[1740718033493,7.7501,129.03,128.93,20.0]
[1740718033700,7.7501,129.03,128.94,18.64964886]
[1740718033885,7.7501,129.03,128.97,20.0]
[1740718034201,7.7483,129.06,128.97,20.0]
[1740718034496,0.03,129.08,129.01,20.0]
[1740718034673,0.03,129.08,128.99,17.0322]
[1740718035195,7.7772,129.08,128.99,17.0322]
[1740718035399,7.7772,129.08,128.99,6.4922]
[1740718035970,43.48232704,129.07,128.94,16.92]
[1740718036278,18.3172,129.08,128.97,20.0]
[1740718036588,18.3172,129.08,128.98,18.64964886]
[1740718036989,18.3172,129.08,128.95,0.14216157]
[1740718036990,43.48232704,129.07,128.95,0.14216157]
[1740718037189,43.48232704,129.07,128.97,20.0]
[1740718037396,43.48232704,129.07,128.94,16.92]
[1740718037588,43.48232704,129.06,128.94,16.92]
[1740718037898,43.48232704,129.06,128.95,18.64964886]
[1740718038386,43.48232704,129.05,128.94,16.92]
[1740718038896,43.48232704,129.05,128.95,18.64964886]
[1740718039092,43.48232704,129.05,128.98,20.0]
[1740718039295,0.03,129.08,128.99,18.64964886]
[1740718039475,0.03,129.08,128.98,20.0]
[1740718039675,7.7478,129.07,128.98,20.0]
[1740718039871,7.7478,129.07,128.97,20.0]
[1740718040179,43.48232704,129.06,128.94,6.38]
[1740718040387,10.52,129.05,128.94,6.38]
[1740718041096,0.03,129.08,128.99,18.64964886]
[1740718041679,0.03,129.08,129.02,20.0]
[1740718041874,0.03,129.08,129.06,20.0]
[1740718042074,0.03,129.08,129.07,38.64964886]
[1740718042294,43.48232704,129.21,129.08,20.0]
[1740718042498,6.16127287,129.19,129.09,10.66216157]
[1740718042799,138.4572,129.25,129.09,10.52]
[1740718043106,38.17971464,129.27,129.12,20.14216157]
[1740718043273,38.17971464,129.27,129.18,20.0]
[1740718043473,44.11249963,129.27,129.19,20.0]
[1740718043728,0.03,129.2,129.19,20.0]
[1740718044102,0.03,129.2,129.15,6.182]
[1740718044304,0.03,129.2,129.06,267.22]
[1740718044483,38.55311057,129.2,129.1,6.5462]
[1740718044685,0.03,129.2,129.1,6.5462]
[1740718044890,0.03,129.2,129.13,20.0]
[1740718045408,38.76879048,129.23,129.13,20.0]
[1740718046107,56.43714831,129.24,129.13,20.0]
[1740718046283,10.56,129.24,129.13,20.0]
[1740718046499,38.76879048,129.23,129.11,0.14216157]
[1740718046803,38.47305387,129.26,129.18,18.64964886]
[1740718046995,38.47305387,129.26,129.21,20.0]
[1740718047499,38.47305387,129.26,129.16,10.54]
[1740718047701,38.47305387,129.26,129.19,20.0]
[1740718048112,51.84849963,129.27,129.16,10.54]
[1740718048289,51.84849963,129.27,129.11,10.52]
[1740718048290,38.81523375,129.25,129.11,10.52]
[1740718048689,38.55850473,129.23,129.11,10.52]
[1740718049094,38.83393039,129.2,129.1,6.5462]
[1740718049506,49.35393039,129.2,129.1,6.5462]
[1740718049686,0.14216157,129.17,129.06,11.97158633]
[1740718049886,0.14216157,129.15,129.06,11.97158633]
[1740718050294,43.48232704,129.16,129.06,11.97158633]
[1740718050808,43.48232704,129.16,129.05,23.94317266]
[1740718050809,43.48232704,129.16,129.03,10.52]
[1740718051011,43.48232704,129.16,129.07,20.0]
[1740718051607,10.52,129.2,129.11,20.0]
[1740718051811,130.6,129.22,129.11,20.0]
[1740718052004,130.6,129.22,129.12,18.64964886]
[1740718052191,138.3388,129.22,129.12,18.64964886]
[1740718052812,130.6,129.22,129.13,20.0]
[1740718053719,138.3389,129.22,129.1,6.6397]
[1740718053911,138.3389,129.22,129.05,18.61128633]
[1740718053912,20.0,129.18,129.05,18.61128633]
[1740718054089,18.79181043,129.17,129.05,18.61128633]
[1740718054298,18.79181043,129.17,129.05,11.97158633]
[1740718054299,0.14216157,129.15,129.05,11.97158633]
[1740718054915,43.48232704,129.14,129.05,11.97158633]
[1740718055213,27.1107,129.1,129.05,11.97158633]
[1740718055908,27.1107,129.1,129.0,6.0092]
[1740718056409,7.7459,129.1,129.01,18.64964886]
[1740718056717,7.7447,129.12,129.04,20.0]
[1740718057302,27.1065,129.12,129.05,0.063]
[1740718057596,7.7447,129.12,129.05,0.063]
[1740718059105,27.1065,129.12,129.05,0.063]
[1740718059720,7.7447,129.12,129.05,0.063]
[1740718060216,19.3579,129.15,129.05,0.063]
[1740718060417,43.48232704,129.14,129.05,0.063]
[1740718060618,43.48232704,129.13,129.05,0.063]
[1740718061116,43.48232704,129.12,129.05,0.063]
[1740718061719,43.48232704,129.11,129.05,0.063]
[1740718062016,27.1107,129.1,129.05,0.063]
[1740718062317,43.48232704,129.09,129.05,0.063]
[1740718062492,43.48232704,129.08,129.05,0.063]
[1740718062696,0.14216157,129.05,128.98,11.97158633]
[1740718062892,43.48232704,129.04,128.98,5.48626341]
[1740718063210,43.48232704,129.03,128.94,0.063]
[1740718064223,27.1275,129.02,128.94,0.063]
[1740718064417,43.48232704,129.03,128.94,0.063]
[1740718064710,43.48232704,129.03,128.95,20.0]
[1740718064916,49.68500764,129.03,128.95,20.0]
[1740718065091,49.68500764,129.03,128.94,0.063]
[1740718065735,62.27413747,129.02,128.94,0.063]
[1740718066517,43.48232704,129.02,128.94,0.063]
[1740718067198,43.48232704,129.02,128.95,20.0]
[1740718068031,43.48232704,129.01,128.94,0.063]
[1740718069409,43.62448861,129.0,128.94,0.063]
[1740718069612,43.48232704,128.99,128.94,0.063]
[1740718071219,199.08508861,128.98,128.83,0.063]
[1740718071518,43.48232704,128.97,128.83,20.063]
[1740718071722,43.48232704,128.97,128.87,20.0]
[1740718072527,52.46442704,129.05,128.88,18.64964886]
[1740718072712,60.21382704,129.05,128.89,0.14216157]
[1740718072912,60.21382704,129.05,128.9,20.0]
[1740718073100,18.79181043,129.03,128.87,9.1777]
[1740718073426,0.14216157,129.01,128.87,9.1777]
[1740718073811,43.48232704,129.02,128.88,18.79181043]
[1740718074210,43.48232704,129.02,128.91,20.0]
[1740718075032,43.62448861,129.01,128.87,6.388]
[1740718075217,43.48232704,129.0,128.87,6.388]
[1740718076245,43.48232704,128.99,128.9,20.0]
[1740718076420,43.48232704,128.98,128.9,20.0]
[1740718076731,43.48232704,128.97,128.87,6.388]
[1740718077222,43.48232704,128.97,128.83,0.063]
[1740718077420,43.48232704,128.96,128.84,10.52]
[1740718077620,43.48232704,128.96,128.85,18.64964886]
[1740718077825,43.48232704,128.96,128.88,20.0]
[1740718078932,51.23682704,128.96,128.83,0.063]
[1740718079124,43.48232704,128.95,128.83,18.85481043]
[1740718079326,43.48232704,128.95,128.86,20.0]
[1740718079942,51.23432704,129.0,128.9,20.0]
[1740718080333,43.48232704,129.0,128.9,20.0]
[1740718081434,43.48232704,129.02,128.94,20.0]
[1740718081808,43.51232704,129.02,128.94,20.0]
[1740718082217,43.48232704,129.01,128.89,0.14216157]
[1740718082422,43.48232704,129.0,128.88,10.52]
[1740718082628,43.48232704,129.0,128.91,20.0]
[1740718082845,0.03,129.02,128.95,20.0]
[1740718083023,0.03,129.02,128.95,30.52]
[1740718083344,0.03,129.02,128.99,20.0]
[1740718084848,0.03,129.02,129.0,18.64964886]
[1740718085258,0.03,129.02,129.01,10.66216157]
[1740718085439,54.00232704,129.14,129.04,20.0]
[1740718085440,43.48232704,129.14,129.04,20.0]
[1740718085745,6.2817,129.15,129.04,20.0]
[1740718085954,14.0247,129.15,129.04,20.0]
[1740718086435,6.15914845,129.15,129.08,20.0]
[1740718086633,0.03,129.15,129.12,20.0]
[1740718086852,6.03271158,129.15,129.12,20.0]
[1740718087155,0.03,129.15,129.12,20.0]
[1740718087922,0.03,129.15,129.08,10.52]
[1740718089054,43.48232704,129.14,129.03,10.52]
[1740718089233,43.48232704,129.13,129.01,6.3233]
[1740718089432,2.7761,129.11,128.99,34.46317266]
[1740718090449,7.7465,129.09,128.99,23.94317266]
[1740718090938,27.1128,129.09,128.99,23.94317266]
[1740718091130,27.1128,129.09,128.97,10.52]
[1740718091330,6.0106,129.07,128.91,6.5822]
[1740718091548,10.52,129.06,128.91,6.5822]
[1740718091741,0.14216157,129.05,128.94,20.0]
[1740718092044,0.14216157,129.05,128.91,6.5822]
[1740718092250,6.0106,129.07,128.94,20.0]
[1740718092426,6.0106,129.07,128.95,10.52]
[1740718092630,6.0106,129.07,128.96,0.14216157]
[1740718092852,13.7586,129.07,128.96,0.14216157]
[1740718093049,43.48232704,129.08,128.99,20.0]
[1740718093228,2.7761,129.11,128.99,20.0]
[1740718093542,2.7761,129.11,129.03,20.0]
[1740718093744,0.14216157,129.1,129.01,10.52]
[1740718093954,0.03,129.06,128.95,10.52]
[1740718095348,0.03,129.06,129.0,20.0]
[1740718096045,0.03,129.06,129.04,20.0]
[1740718096963,133.5332,129.16,129.04,20.0]
[1740718097263,43.48232704,129.14,129.04,20.0]
[1740718097462,43.48232704,129.14,129.08,20.0]
[1740718097955,43.48232704,129.14,129.01,153.3521]
[1740718098150,43.48232704,129.13,129.01,16.8521]
[1740718098465,43.48232704,129.13,128.99,10.52]
[1740718098466,0.14216157,129.12,128.99,10.52]
[1740718098793,27.1128,129.09,128.96,6.1477]
[1740718098933,7.7465,129.09,128.94,10.52]
[1740718099131,7.7465,129.09,128.97,20.0]
[1740718099364,7.746,129.1,129.01,20.0]
[1740718099543,27.1108,129.1,129.01,20.0]
[1740718099857,7.746,129.1,128.94,12.14793662]
[1740718100070,43.48232704,129.11,128.99,0.14216157]
[1740718100288,10.52,129.14,129.03,20.0]
[1740718100487,10.52,129.14,129.05,20.0]
[1740718100779,177.01552704,129.16,129.05,20.0]
[1740718100955,184.75802704,129.16,129.05,20.0]
[1740718101256,184.75782704,129.16,129.09,20.0]
[1740718101452,133.5332,129.16,129.09,20.0]
[1740718101652,6.03458125,129.18,129.09,20.0]
[1740718101850,7.7412,129.18,129.09,20.0]
[1740718102282,7.7412,129.18,129.05,20.0]
[1740718102557,7.7406,129.19,129.09,20.0]
[1740718102780,27.0919,129.19,129.09,20.0]
[1740718103479,43.48232704,129.18,129.05,20.0]
[1740718103681,0.14216157,129.16,129.05,20.0]
[1740718103884,43.48232704,129.17,129.05,20.0]
[1740718104484,43.48232704,129.16,129.09,20.0]
[1740718104682,43.48232704,129.15,129.09,20.0]
[1740718104858,43.48232704,129.18,129.09,20.0]
[1740718105060,51.22372704,129.18,129.1,20.0]
[1740718105460,0.14216157,129.16,129.02,16.6197]
[1740718105680,43.48232704,129.15,129.02,16.6197]
[1740718106583,43.48232704,129.15,129.06,20.0]
[1740718106795,51.22282704,129.19,129.1,20.0]
[1740718107088,0.03,129.17,129.1,20.0]
[1740718107263,43.48232704,129.16,129.07,10.52]
[1740718107585,43.48232704,129.16,129.1,20.0]
[1740718107788,0.03,129.17,129.1,20.0]
[1740718108995,0.03,129.17,129.07,10.52]
[1740718109169,43.48232704,129.16,129.07,10.52]
[1740718109664,43.48232704,129.16,129.06,20.0]
[1740718111976,43.48232704,129.16,129.1,20.0]
[1740718112176,43.48232704,129.15,129.1,20.0]
[1740718112591,43.48232704,129.15,129.03,1.68944179]
[1740718112792,0.14216157,129.13,129.03,0.063]
[1740718112997,54.00232704,129.14,129.03,0.063]
[1740718113807,7.7441,129.13,129.05,20.0]
[1740718114099,7.7441,129.13,129.03,0.063]
[1740718114295,54.00232704,129.14,129.03,0.063]
[1740718115101,61.74592704,129.14,129.03,0.063]
[1740718115704,43.48232704,129.13,129.06,20.0]
[1740718118584,43.48232704,129.12,129.06,20.0]
[1740718121311,51.22702704,129.12,129.05,0.063]
[1740718122822,43.48232704,129.11,129.05,0.063]
[1740718122991,43.48232704,129.1,128.93,42.59864954]
[1740718123192,43.48232704,129.09,128.97,10.5]
[1740718123993,43.48232704,129.09,129.0,20.0]
[1740718124196,51.22942704,129.08,128.98,4.51353935]
[1740718124403,43.48232704,129.07,128.98,4.51353935]
[1740718124614,43.48232704,129.06,128.98,24.51353935]
[1740718124816,43.48232704,129.06,128.98,4.51353935]
[1740718125322,43.48232704,129.06,128.94,24.90804886]
[1740718125887,43.48232704,129.06,128.98,18.64964886]
[1740718126088,43.48232704,129.06,128.97,20.0]
[1740718126323,43.48232704,129.06,128.99,20.0]
[1740718126506,51.23062704,129.06,128.94,6.2584]
[1740718126707,43.48232704,129.06,128.95,18.64964886]
[1740718126906,10.5,129.08,128.96,0.14216157]
[1740718127112,10.5,129.08,128.95,0.14216157]
[1740718127326,10.5,129.08,128.97,20.0]
[1740718127723,10.5,129.08,128.98,18.79181043]
[1740718127908,43.48232704,129.1,128.98,18.79181043]
[1740718128109,43.48232704,129.1,128.98,23.31879517]
[1740718128313,43.62448861,129.09,128.98,4.52698474]
[1740718128524,0.14216157,129.07,128.98,4.52698474]
[1740718129028,43.48232704,129.06,128.98,4.52698474]
[1740718129198,43.48232704,129.05,128.95,4.52698474]
[1740718129393,45.70832704,129.04,128.95,4.52698474]
[1740718130333,45.70832704,129.04,128.97,20.0]
[1740718131707,45.70832704,129.04,128.94,4.52698474]
[1740718132114,43.62448861,129.03,128.92,0.063]
[1740718132303,51.23302704,129.02,128.92,0.063]
[1740718132802,62.27413747,129.01,128.92,0.063]
[1740718133010,62.27413747,129.01,128.9,0.063]
[1740718133011,18.79181043,128.99,128.9,0.063]
[1740718133208,18.79181043,128.97,128.9,0.063]
[1740718133415,6.2664,128.95,128.9,0.063]
[1740718134401,2.2758,128.96,128.9,0.063]
[1740718134808,10.0303,128.96,128.9,0.063]
[1740718135018,16.20384463,128.96,128.9,0.063]
[1740718135226,16.20384463,128.96,128.86,20.0]
[1740718135429,43.48232704,128.95,128.86,20.0]
[1740718136130,43.48232704,128.95,128.86,19.8]
[1740718136515,43.48232704,128.95,128.86,0.14216157]
[1740718136716,8.44934463,128.96,128.86,0.14216157]
[1740718137023,8.44934463,128.96,128.88,0.14216157]
[1740718137202,6.17354463,128.96,128.88,0.14216157]
[1740718137398,6.1492,128.99,128.88,0.14216157]
[1740718137710,12.41577343,128.99,128.88,0.14216157]
[1740718138005,6.26657343,128.99,128.9,0.14216157]
[1740718138212,2.2489,129.01,128.93,20.0]
[1740718138434,43.48232704,129.0,128.85,1.62841752]
[1740718138610,43.48232704,129.0,128.88,10.52]
[1740718139010,43.48232704,129.0,128.92,20.0]
[1740718139719,51.23462704,129.0,128.92,20.0]
[1740718139936,43.48232704,129.0,128.92,20.0]
[1740718140238,6.09467879,129.0,128.96,20.0]
[1740718140534,6.6184,129.03,128.96,20.0]
[1740718140736,6.6184,129.03,128.97,20.0]
[1740718141041,43.48232704,129.04,129.01,20.0]
[1740718141042,6.23345821,129.04,129.01,20.0]
[1740718141210,43.48232704,129.03,128.94,10.52]
[1740718141408,43.48232704,129.02,128.94,10.52]
[1740718141723,51.23312704,129.02,128.91,10.52]
[1740718141920,43.48232704,129.01,128.92,18.64964886]
[1740718142114,43.48232704,129.01,128.95,20.0]
[1740718142310,6.08184016,129.04,128.96,18.64964886]
[1740718142537,43.48232704,129.05,128.99,20.0]
[1740718142711,6.00996121,129.05,129.03,20.0]
[1740718143030,0.03,129.06,129.03,20.0]
[1740718143944,0.03,129.06,129.05,0.14216157]
[1740718145645,0.03,129.06,129.0,0.14216157]
[1740718145947,0.03,129.06,128.99,16.5673]
[1740718146118,0.03,129.06,128.99,10.5]
[1740718146839,8.9431,129.06,128.95,10.5]
[1740718147238,8.905975,129.06,128.95,10.5]
[1740718147621,8.905975,129.06,128.96,18.64964886]
[1740718147830,8.905975,129.06,128.99,20.0]
[1740718148023,8.905975,129.06,128.95,10.5]
[1740718148424,43.62448861,129.05,128.94,23.94317266]
[1740718148751,43.62448861,129.05,128.89,10.5]
[1740718148924,43.48232704,129.04,128.89,10.5]
[1740718149125,43.62448861,129.03,128.89,10.5]
[1740718149429,43.48232704,129.02,128.89,18.79181043]
[1740718149727,43.48232704,129.01,128.92,20.0]
[1740718150751,43.48232704,129.01,128.89,18.64964886]
[1740718150752,43.48232704,129.01,128.89,20.27822527]